{"text_format":"1","workbook":"xlsx","n_sheets":4,"sheets":["formular","cesta","ciselnik","data"],"not_rendered":{"charts":0,"images":6,"macros":1,"external_links":0,"defined_names":0,"comments":0,"pivot_tables":0},"unopened":[],"bounds":{"document_bytes":16777216,"sheet_cells":100000,"rows_first":2000,"rows_last":500,"rows_between":2000,"halvings":0,"cell_chars":16384,"cell_head_chars":4096},"cells_cut":0,"cells_raw":0,"read":"whole","date_system":"1900"}

{"sheet":"formular","index":0,"n_rows":50,"n_cols":33,"rows_kept":50,"cut":false,"hidden":false,"merged":[[40,15,40,21],[13,15,13,19],[15,15,16,19],[17,15,17,19],[19,15,19,17],[42,22,42,23],[9,10,9,12],[50,3,55,24],[43,22,43,23],[45,22,45,23],[43,20,43,21],[45,20,45,21],[44,20,44,21],[44,22,44,23],[46,15,46,16],[46,17,46,18],[46,20,46,21],[46,22,46,23],[41,22,41,23],[34,19,35,24],[44,17,44,18],[41,20,41,21],[45,15,45,16],[9,19,9,21],[2,3,6,10],[9,6,9,9],[15,11,16,12],[9,3,9,5],[42,20,42,21],[45,17,45,18],[43,17,43,18],[44,15,44,16],[15,3,16,4],[15,8,16,10],[43,15,43,16],[42,15,42,16],[42,17,42,18],[37,30,37,35],[37,3,37,10],[33,11,33,12],[28,3,28,9],[13,11,13,12],[10,14,16,14],[18,9,18,10],[24,10,24,11],[29,16,30,17],[13,3,14,4],[13,8,14,10],[11,3,11,9],[11,15,11,21]]}
[]
[]
[null,null,null,"Záznam o ZAHÁJENÍ intervence paliativního týmu – dětský pacient ambulantní",null,null,null,null,null,null,null,null,null,null,null,null,null,null,null,null,null,null,null,null,null,null,null,null,null,null,null,null,"d01A-formular-indikacni-dotaznik-ambul"]
[]
[]
[]
[]
[]
[null,null,null,"Jméno",null,null,"Příjmení",null,null,null,"Rodné číslo (bez lomítka)",null,null,null,null,"Věk",null,"Pohlaví",null,"Datum a čas vyplnění"]
[null,null,null,"Adam",null,null,"Rýznar",null,null,null,"0603313271",null,null,null,null,13,null,null,null,"2020-01-09T10:18:01"]
[]
[null,null,null,"Ambulantní konzultace/intervence",null,null,null,null,null,null,null,null,null,null,null,"Anamnéza"]
[]
[null,null,null,"Datum poslední hospitalizace1",null,null,null,null,"Základní dg. při hospitalizaci (dle MKN)",null,null,"G80.9",null,null,null,"Performance status při přijetí (0–4)"]
[]
[null,null,null,"Datum prvního kontaktu",null,null,null,null,"Osoba s právem zástupného souhlasu",null,null,"Jana Rýznarová",null,null,null,"Performance status ve stabilním stavu poslední měsíc před hospitalizací (0–4)"]
[]
[null,null,null,"Dokumentace obsahuje informaci o limitaci péče",null,null,null,null,null,null,null,null,null,null,null,"Váhový úbytek více než 5 kg za poslední měsíc"]
[]
[null,null,null,null,null,null,null,null,null,null,null,null,null,null,null,"PaPaS score",null,null,14]
[null,null,null,"Oddělení vyžadující intervenci NTPP"]
[]
[]
[]
[]
[]
[null,null,null,"Standartní péče",null,null,"JIP / resuscitační péče",null,null,"Následná péče"]
[]
[null,null,null,"Důvody vyžádání intervence NTPP dle ošetřujícího lékaře"]
[]
[]
[]
[]
[]
[]
[null,null,null,"Surprise question: Byl byste překvapen, kdyby tento pacient zemřel do 12 měsíců?2"]
[null,null,null,null,null,null,null,null,null,null,null,null,null,null,null,"Signální kód"]
[null,null,null,"Jakou má pacient podle vašeho názoru pravděpodobnou dobu dožití (prognózu)?2"]
[]
[]
[null,null,null,null,null,null,null,null,null,null,null,null,null,null,null,"Osoby blízké / pečující"]
[null,null,null,"poznámky",null,null,null,null,null,null,null,null,null,null,null,"Jméno",null,"Příjmení",null,"Věk","Vztah k pacientovi3",null,"Blízkost k pacientovi4"]
[null,null,null,"1 datum zahájení hospitalizace v tomto zdravotnickém zařízení",null,null,null,null,null,null,null,null,null,null,null,"Jana",null,"Rýznarová",null,null,"matka",null,1]
[null,null,null,"2 dle ošetřujícího lékaře"]
[null,null,null,"3 vztah k pacientovi (partner, manžel, rodič, sourozenec, dítě, vnuk, jiný příbuzný, nepříbuzný / pečující)"]
[null,null,null,"4 blízkost k pacientovi dle blízkého (1 nejbližší / v důvěrném kontaktu – 5 neznámí / bez kontaktu)"]
[]
[]
[]
[null,null,null,"Komentář"]

{"sheet":"cesta","index":1,"n_rows":14,"n_cols":3,"rows_kept":14,"cut":false,"hidden":false,"merged":[[1,1,2,13],[9,2,10,12],[11,2,12,12]]}
[]
[]
[]
[]
[]
[]
[]
[]
[]
[null,null,"Sem zadejte cestu, kam chcete, aby se vám formulář uložil"]
[]
[]
[]
[null,null,"např.:C:\\Users\\novotny\\Documents\\elfis"]

{"sheet":"ciselnik","index":2,"n_rows":39,"n_cols":11,"rows_kept":39,"cut":false,"hidden":false,"merged":[[0,0,0,2]]}
["Vysvětlivky - data"]
[]
["Možnost","Kódování",null,"Pohlaví","Kódování"]
["Ano",1,null,"Muž",1]
["Ne",2,null,"Žena",2]
[]
[]
["Den","Kódování",null,"Měsíc","Kódování",null,"Rok","Kódování",null,"Performance status","Kódování"]
[1,1,null,"Leden",1,null,2017,2017,null,0,1]
[2,2,null,"Únor",2,null,2018,2018,null,1,2]
[3,3,null,"Březen",3,null,2019,2019,null,2,3]
[4,4,null,"Duben",4,null,2020,2020,null,3,4]
[5,5,null,"Květen",5,null,2021,2021,null,4,5]
[6,6,null,"Červen",6,null,2022,2022]
[7,7,null,"Červenec",7,null,2023,2023]
[8,8,null,"Srpen",8]
[9,9,null,"Září",9,null,null,null,null,"Prognóza","Kódování"]
[10,10,null,"Říjen",10,null,null,null,null,"dny",1]
[11,11,null,"Listopad",11,null,null,null,null,"týdny",2]
[12,12,null,"Prosinec",12,null,null,null,null,"měsíce",3]
[13,13,null,null,null,null,null,null,null,"roky",4]
[14,14,null,null,null,null,null,null,null,"neumím odhadnout",5]
[15,15]
[16,16]
[17,17]
[18,18]
[19,19]
[20,20]
[21,21]
[22,22]
[23,23]
[24,24]
[25,25]
[26,26]
[27,27]
[28,28]
[29,29]
[30,30]
[31,31]

{"sheet":"data","index":3,"n_rows":105,"n_cols":86,"rows_kept":105,"cut":false,"hidden":false,"merged":[]}
["Zahájení intervence paliativního týmu"]
["Jméno",{"$f":"formular!D10","v":"Adam"}]
["Příjmení",{"$f":"formular!G10","v":"Rýznar"}]
["Věk",{"$f":"formular!P10","v":13}]
["Rodné číslo",{"$f":"formular!K10","v":"0603313271"}]
["Pohlaví",1]
["Datum a čas vyplnění",{"$f":"formular!T10","v":"2020-01-09T10:18:01"},null,null,null,null,{"$f":"B7","v":"2020-01-09T10:18:01"}]
["Datum hosp - den",8]
["Datum hosp - mesic",1,null,null,null,null,"2020-01-09T10:18:01"]
["Datum hosp - rok",{"$f":"IF(C10=1,2017,IF(C10=2,2018,IF(C10=3,2019,IF(C10=4,2020,IF(C10=5,2021,IF(C10=6,2022,IF(C10=7,2023,\"-\")))))))","v":2020},4,null,null,null,"1-9-2020-10-18-01",null,null,null,null,null,null,null,null,null,null,null,null,null,null,null,null,null,null,null,null,null,null,null,null,null,null,null,null,null,null,null,null,null,null,null,null,null,null,null,null,null,null,null,null,null,null,null,null,null,null,null,null,null,null,null,null,null,null,null,null,null,null,null,null,null,null,null,null,null,null,null,null,null,1,9,2020,10,18,1]
["Datum prvního kontaktu - den",8]
["Datum prvního kontaktu - mesic",1]
["Datum prvního kontaktu - rok",{"$f":"IF(C13=1,2019,IF(C13=2,2020,IF(C13=3,2021,IF(C13=4,2022,IF(C13=5,2023,\"-\")))))","v":2022},4]
["Zakladní dg. při hospitalizaci",{"$f":"formular!L14","v":"G80.9"}]
["Osoba s právem zástupného souhlasu",{"$f":"formular!L17","v":0}]
["Dokumentace obsahuje informaci o limitaci péče","-"]
["NE",true]
["DNR"]
["DNI"]
["DVP"]
["jiné",{"$f":"formular!J19","v":0}]
["Oddělení vyžadující intervenci","-"]
["dermatologie"]
["emergency"]
["ARK"]
["kardiocentrum"]
["hematologie"]
["chirurgie"]
["neonatologie"]
["pediatrie",true]
["neurologie"]
["onkologie"]
["ORL"]
["porodní"]
["stomatologie"]
["jiné",{"$f":"formular!K25","v":0}]
["Standartní péče"]
["JIP / resuscitační péče"]
["Následná péče",true]
["Důvody vyžádání intervence NTPP dle lékaře","-"]
["řešení symptomů"]
["podpora při obtížné komunikaci"]
["formulace cíle a plánu",true]
["psychologická a sociální podpora pacienta"]
["psychologická a sociální podpora blízkých  osob pacienta"]
["formulace a komunikace limitace péče"]
["péče o pacienta v terminálním stavu"]
["podpora při řešení etického dilematu"]
["příprava propuštění domů nebo předání do péče jiného poskytovatele"]
["spirituální intervence"]
["porozumění prognóze",false]
["nespecifikováno"]
["jiné",{"$f":"formular!L34","v":0}]
["Surprise question",2]
["Prognoza",4]
["Anamnéza","-"]
["Performance status při přijetí"]
["Performance status ve stabilním stavu poslední měsíc před hospitalizací"]
["Výhový úbytek více než 5 kg poslední měsíc",2]
["PaPaS score",{"$f":"formular!S20","v":14}]
["vrozené vývojové vady a kongenitální malformace"]
["vybrané těžké infekční nemoci"]
["hematoonkologické"]
["neurologické",true]
["úraz"]
["kardiovaskulární"]
["nemoci dýchací soustavy"]
["metabolické a endokrinní nemoci",false]
["stavy vzniklé v perinatálním období",true]
["jiné",{"$f":"formular!$Q$30","v":0}]
["Pacient indikován k péči NTPP",true]
["Není indikován - důvod",{"$f":"formular!T35","v":0}]
["Signální kód","-"]
["terminální paliativní péče"]
["terminální paliativní péče u dítěte / nezletilého pacienta"]
["časná paliativní péče",false]
["časná paliativní péče u dítěte / nezletilého pacienta",true]
["podpůrná intervence pro blízké a pečující osoby závažně nemocného pacienta"]
["Osoby blízké / pečující","-"]
["Jméno 1",{"$f":"formular!P43","v":"Jana"}]
["Příjmení 1",{"$f":"formular!R43","v":"Rýznarová"}]
["Věk 1",{"$f":"formular!T43","v":0}]
["Vztah k pacientovi 1",{"$f":"formular!U43","v":"matka"}]
["Blízkost k pacientovi 1",{"$f":"formular!W43","v":1}]
["Jméno 2",{"$f":"formular!P44","v":0}]
["Příjmení 2",{"$f":"formular!R44","v":0}]
["Věk 2",{"$f":"formular!T44","v":0}]
["Vztah k pacientovi 2",{"$f":"formular!U44","v":0}]
["Blízkost k pacientovi 2",{"$f":"formular!W44","v":0}]
["Jméno 3",{"$f":"formular!P45","v":0}]
["Příjmení 3",{"$f":"formular!R45","v":0}]
["Věk 3",{"$f":"formular!T45","v":0}]
["Vztah k pacientovi 3",{"$f":"formular!U45","v":0}]
["Blízkost k pacientovi 3",{"$f":"formular!W45","v":0}]
["Jméno 4",{"$f":"formular!P46","v":0}]
["Příjmení 4",{"$f":"formular!R46","v":0}]
["Věk 4",{"$f":"formular!T46","v":0}]
["Vztah k pacientovi 4",{"$f":"formular!U46","v":0}]
["Blízkost k pacientovi 4",{"$f":"formular!W46","v":0}]
["Jméno 5",{"$f":"formular!P47","v":0}]
["Příjmení 5",{"$f":"formular!R47","v":0}]
["Věk 5",{"$f":"formular!T47","v":0}]
["Vztah k pacientovi 5",{"$f":"formular!U47","v":0}]
["Blízkost k pacientovi 5",{"$f":"formular!W47","v":0}]
["Komentář",{"$f":"formular!D51","v":0}]